bitfinex/quotes_SOLUSD_20241008
["timestamp","ask_amount","ask_price","bid_price","bid_amount"]
[1728418375770,0.12549,144.11,144.09,17.3499]
[1728418381678,0.12549,144.11,144.09,24.29]
[1728418382407,0.12549,144.13,144.1,6.9396]
[1728418382591,0.12549,144.13,144.1,8.32738337]
[1728418383382,0.12549,144.13,144.1,6.9396]
[1728418384085,7.06379,144.13,144.09,24.2898]
[1728418385195,7.06379,144.13,144.05,10.3774327]
[1728418385196,0.12549,144.13,144.05,10.3774327]
[1728418385396,0.12549,144.13,144.04,56.9129]
[1728418385397,6.94,144.1,144.06,24.2941]
[1728418385604,6.9393,144.11,144.07,6.9409]
[1728418385785,7.06529,144.1,144.06,24.2941]
[1728418387089,7.06529,144.1,144.07,6.941]
[1728418387401,0.12549,144.1,144.07,6.941]
[1728418387606,0.12549,144.1,144.07,8.32904372]
[1728418388108,0.12549,144.12,144.09,6.94]
[1728418389107,0.12549,144.12,144.08,24.2915]
[1728418389677,6.9391,144.11,144.08,17.351]
[1728418389906,0.12549,144.1,144.08,17.351]
[1728418390105,0.12549,144.1,144.07,6.9408]
[1728418390307,43.776884,144.11,144.04,6.9422]
[1728418390605,43.776884,144.11,144.05,6.9419]
[1728418390786,0.12549,144.08,144.05,6.9419]
[1728418391201,20.0,144.11,144.05,1.38828]
[1728418391406,0.12549,144.09,144.06,6.9415]
[1728418392200,0.12549,144.09,144.06,24.2953]
[1728418392507,0.12549,144.1,144.07,6.9409]
[1728418393913,7.06539,144.1,144.06,17.3538]
[1728418394514,7.06539,144.1,144.06,24.2949]
[1728418396009,16.1249,144.12,144.06,17.3538]
[1728418396214,16.1249,144.12,144.05,6.9418]
[1728418396391,6.9405,144.08,144.03,17.3565]
[1728418396590,6.9405,144.08,144.04,6.9423]
[1728418397218,0.12549,144.09,144.03,17.3565]
[1728418397418,0.12549,144.08,144.05,6.9419]
[1728418398297,0.12549,144.08,144.06,8.32968942]
[1728418398494,6.9402,144.09,144.06,6.9415]
[1728418399318,6.9402,144.09,144.06,8.32964327]
[1728418399719,7.06529,144.1,144.06,8.32964327]
[1728418400420,0.12549,144.1,144.07,6.941]
[1728418402801,7.06509,144.1,144.06,6.9413]
[1728418405825,20.12549,144.1,144.05,17.3548]
[1728418406417,20.12549,144.1,144.05,24.2966]
[1728418406624,6.9402,144.09,144.05,24.2966]
[1728418407711,6.9402,144.09,144.06,6.9414]
[1728418407907,0.12549,144.1,144.06,1.38814815]
[1728418408111,6.9394,144.11,144.07,6.9407]
[1728418408331,6.9394,144.11,144.08,6.9405]
[1728418408513,7.25625642,144.13,144.09,6.9401]
[1728418408709,6.9384,144.13,144.1,6.9396]
[1728418409122,6.9384,144.13,144.09,24.29]
[1728418410135,6.9397,144.1,144.06,24.2941]
[1728418411333,20.12549,144.13,144.07,6.941]
[1728418411536,6.9387,144.12,144.08,6.9405]
[1728418411910,16.4559,144.15,144.09,6.94]
[1728418412122,6.9386,144.12,144.08,24.2915]
[1728418413815,0.12549,144.12,144.09,6.94]
[1728418414134,7.06409,144.12,144.09,6.94]
[1728418417721,0.12549,144.12,144.09,6.94]
[1728418418421,6.9383,144.13,144.09,6.94]
[1728418421841,6.9388,144.12,144.08,24.2916]
[1728418423519,0.12549,144.13,144.09,6.94]
[1728418423719,7.06379,144.13,144.09,6.94]
[1728418430341,6.9387,144.12,144.09,6.94]
[1728418430542,6.9387,144.12,144.08,17.3511]
[1728418430757,0.12549,144.11,144.08,24.2912]
[1728418430974,7.06459,144.11,144.08,17.3511]
[1728418431133,0.12549,144.11,144.08,24.2916]
[1728418431451,7.06469,144.11,144.08,17.3511]
[1728418433951,7.06469,144.11,144.08,24.2916]
[1728418434448,0.12549,144.11,144.08,24.2916]
[1728418435138,6.9388,144.12,144.08,17.3511]
[1728418435339,6.9388,144.12,144.08,24.2915]
[1728418436470,0.12549,144.11,144.08,24.2915]
[1728418436961,41.05400321,144.15,144.14,6.9376]
[1728418436962,7.25510321,144.15,144.14,6.9376]
[1728418437163,0.8575467,144.17,144.13,6.9378]
[1728418437345,7.7938467,144.17,144.13,6.9378]
[1728418438155,0.8575467,144.17,144.12,17.3461]
[1728418438449,0.8575467,144.17,144.14,17.344]
[1728418439468,0.8575467,144.17,144.14,24.2813]
[1728418440565,0.8575467,144.17,144.15,8.32440013]
[1728418440763,0.8575467,144.17,144.15,6.9371]
[1728418440941,0.8575467,144.17,144.15,8.32438442]
[1728418441356,0.8575467,144.17,144.15,6.9371]
[1728418442845,0.8575467,144.17,144.14,17.344]
[1728418443046,0.8575467,144.17,144.16,6.9367]
[1728418456990,0.8575467,144.17,144.16,6.9367]
[1728418458593,0.8575467,144.17,144.16,19.89010936]
[1728418458884,0.8575467,144.17,144.16,6.9367]
[1728418460289,0.8575467,144.17,144.16,19.89010936]
[1728418462181,0.8575467,144.17,144.16,6.9367]
[1728418492309,0.8575467,144.17,144.16,19.89010936]
[1728418493912,0.8575467,144.17,144.16,19.88411709]
[1728418498793,0.8575467,144.17,144.16,6.9367]
[1728418499000,0.8575467,144.17,144.16,19.88411709]
[1728418499300,0.8575467,144.17,144.16,19.88295091]
[1728418500200,0.8575467,144.17,144.16,63.65983491]
[1728418500397,6.9319,144.26,144.22,6.9336]
[1728418500706,6.9319,144.26,144.22,8.32016936]
[1728418501318,0.39082172,144.28,144.25,19.87815091]
[1728418501515,0.39082172,144.28,144.2,6.5653]
[1728418501516,0.39082172,144.28,144.23,19.87955091]
[1728418501729,0.39082172,144.28,144.26,6.9318]
[1728418502326,0.39082172,144.28,144.27,6.9314]
[1728418502705,0.39082172,144.28,144.27,19.87765091]
[1728418503017,0.39082172,144.28,144.27,6.9314]
[1728418505133,0.39082172,144.28,144.27,19.87765091]
[1728418505636,0.39082172,144.28,144.27,6.9314]
[1728418507029,0.39082172,144.28,144.27,19.17766491]
[1728418513118,0.39082172,144.28,144.27,42.95454891]
[1728418514232,0.39082172,144.28,144.27,44.34026442]
[1728418514825,0.39082172,144.28,144.27,64.34026442]
[1728418515133,0.8575467,144.32,144.31,6.9295]
[1728418515336,0.8575467,144.32,144.31,21.26114542]
[1728418515944,0.8575467,144.32,144.31,63.65263491]
[1728418516241,0.8575467,144.32,144.31,19.87575091]
[1728418516421,0.8575467,144.32,144.31,21.26110525]
[1728418516608,0.8575467,144.32,144.31,19.87575091]
[1728418517227,0.8575467,144.32,144.31,45.03799691]
[1728418517539,0.8575467,144.32,144.31,43.65263491]
[1728418521628,0.8575467,144.32,144.31,19.87575091]
[1728418522444,0.8575467,144.32,144.3,17.3243]
[1728418522630,0.8575467,144.32,144.27,17.3277]
[1728418522631,7.7866467,144.32,144.27,17.3277]
[1728418522834,0.8575467,144.32,144.27,24.259]
[1728418523215,7.7867467,144.32,144.28,6.9308]
[1728418523438,7.7867467,144.32,144.27,24.2589]
[1728418524032,7.7867467,144.32,144.28,8.31673666]
[1728418524242,7.7867467,144.32,144.28,6.9309]
[1728418524614,7.7867467,144.32,144.27,37.20515091]
[1728418525233,0.8575467,144.32,144.27,37.20515091]
[1728418525542,6.93,144.3,144.25,39.87835091]
[1728418525943,6.93,144.3,144.26,6.9318]
[1728418526440,0.8575467,144.32,144.26,6.9318]
[1728418526640,6.9303,144.3,144.25,19.87845091]
[1728418526848,0.8575467,144.32,144.25,6.9322]
[1728418526849,6.9306,144.29,144.25,6.9322]
[1728418527829,6.9301,144.3,144.25,6.9322]
[1728418529628,6.9301,144.3,144.26,8.3178345]
[1728418529828,6.9301,144.3,144.26,6.9318]
[1728418530946,6.9301,144.3,144.27,1.3860366]
[1728418531818,7.3915467,144.32,144.27,1.3860366]
[1728418532019,6.9296,144.31,144.27,6.9309]
[1728418535023,6.9296,144.31,144.28,1.38595566]
[1728418535545,6.9304,144.29,144.25,6.9323]
[1728418539961,6.9304,144.29,144.23,17.3323]
[1728418539962,16.2927,144.29,144.23,17.3323]
[1728418540127,6.932,144.26,144.23,17.3323]
[1728418540325,6.9328,144.25,144.21,6.9341]
[1728418540526,6.9325,144.25,144.21,6.9341]
[1728418541428,0.12549,144.28,144.22,1.3865034]
[1728418541627,6.9317,144.27,144.23,6.9332]
[1728418541936,6.9317,144.27,144.24,1.38638718]
[1728418542351,23.2233,144.29,144.25,6.9323]
[1728418542531,23.2233,144.29,144.26,1.3862163]
[1728418542731,6.931,144.28,144.24,37.21105091]
[1728418545055,6.931,144.28,144.24,24.2648]
[1728418545754,6.9319,144.26,144.22,6.9336]
[1728418547038,16.2927,144.29,144.21,17.335]
[1728418547039,0.12549,144.27,144.21,17.335]
[1728418547236,6.9324,144.25,144.21,24.269]
[1728418547446,6.9322,144.26,144.22,8.32023757]
[1728418547646,6.9322,144.26,144.22,6.9337]
[1728418550763,6.9324,144.25,144.22,6.9338]
[1728418550964,6.9322,144.26,144.22,8.3203267]
[1728418552064,23.2232,144.29,144.25,6.9323]
[1728418552263,23.2232,144.29,144.26,1.38616694]
[1728418553366,23.2232,144.29,144.25,24.2632]
[1728418554162,16.2927,144.29,144.26,8.31799721]
[1728418555152,23.2232,144.29,144.26,8.31799721]
[1728418555580,23.2232,144.29,144.26,1.38619721]
[1728418555874,23.2232,144.29,144.25,24.2631]
[1728418556764,23.2232,144.29,144.25,17.3309]
[1728418556765,16.2927,144.29,144.25,17.3309]
[1728418557070,6.931,144.28,144.25,17.3309]
[1728418557477,6.9314,144.27,144.22,30.27985091]
[1728418557665,16.2927,144.29,144.18,49.8284]
[1728418557666,6.9328,144.24,144.2,6.9346]
[1728418557865,17.45299,144.28,144.2,6.9346]
[1728418558166,17.45299,144.28,144.19,17.3372]
[1728418558167,6.9341,144.22,144.19,17.3372]
[1728418559257,0.12549,144.25,144.17,6.9361]
[1728418559258,6.9344,144.21,144.17,6.9361]
[1728418559562,6.9344,144.21,144.16,17.3408]
[1728418559762,16.3645,144.23,144.16,17.3408]
[1728418559969,6.9348,144.2,144.16,24.2774]
[1728418560746,7.05969,144.22,144.17,1.3869687]
[1728418560946,6.9342,144.22,144.17,1.3869687]
[1728418561152,6.9342,144.22,144.18,6.9354]
[1728418561379,16.3645,144.23,144.19,1.38685047]
[1728418561668,17.3294,144.27,144.22,6.9338]
[1728418561669,7.05749,144.26,144.22,6.9338]
[1728418562791,7.05749,144.26,144.21,6.9341]
[1728418563076,7.05749,144.26,144.22,1.38654094]
[1728418563281,7.05749,144.26,144.22,8.32034094]
[1728418564080,7.05749,144.26,144.23,1.38650916]
[1728418564450,7.05749,144.26,144.22,8.32030614]
[1728418564651,16.1659,144.27,144.22,31.66705705]
[1728418564863,16.1659,144.27,144.24,17.3319]
[1728418565063,23.0974,144.27,144.24,17.3319]
[1728418565666,16.1659,144.27,144.21,17.3356]
[1728418565870,6.9328,144.25,144.21,24.2699]
[1728418566100,6.9328,144.25,144.22,1.38653349]
[1728418566382,7.05749,144.26,144.22,8.32033349]
[1728418566577,6.9324,144.25,144.21,24.2697]
[1728418566786,0.12549,144.26,144.21,18.7221369]
[1728418567079,6.9329,144.24,144.21,17.3356]
[1728418567274,0.12549,144.26,144.19,6.9351]
[1728418567275,6.9334,144.23,144.19,6.9351]
[1728418567660,0.12549,144.26,144.18,30.28455091]
[1728418567863,6.9329,144.24,144.2,6.9346]
[1728418568682,6.9329,144.24,144.21,1.38666206]
[1728418568858,0.12549,144.26,144.21,6.9343]
[1728418568859,6.9325,144.25,144.21,6.9343]
[1728418569060,6.9325,144.25,144.21,8.32095371]
[1728418570308,16.1659,144.27,144.21,1.38665371]
[1728418570604,16.1659,144.27,144.25,6.9323]
[1728418570986,6.9306,144.29,144.25,6.9323]
[1728418571312,6.9309,144.28,144.24,24.2647]
[1728418571900,6.9315,144.27,144.24,17.332]
[1728418572205,6.9315,144.27,144.24,18.71839464]
[1728418572796,6.9315,144.27,144.24,17.332]
[1728418572990,20.0,144.3,144.23,6.933]
[1728418573192,6.9319,144.26,144.23,6.933]
[1728418574306,6.9316,144.27,144.24,1.38640008]
[1728418574493,0.12549,144.29,144.24,8.31910008]
[1728418574494,6.9312,144.28,144.24,8.31910008]
[1728418574698,0.12549,144.29,144.24,6.9327]
[1728418574882,6.9315,144.27,144.24,6.9327]
[1728418575205,6.9315,144.27,144.23,24.2664]
[1728418575611,6.9315,144.27,144.24,1.38639666]
[1728418578308,0.12549,144.29,144.24,1.38639666]
[1728418579106,6.9301,144.3,144.26,6.9318]
[1728418579318,6.9301,144.3,144.27,1.38611071]
[1728418579509,16.5062,144.31,144.22,23.8137]
[1728418579811,6.9315,144.27,144.23,6.9332]
[1728418580311,16.5062,144.31,144.22,17.3335]
[1728418580484,6.932,144.26,144.22,24.267]
[1728418581800,6.932,144.26,144.23,6.9333]
[1728418582412,6.9316,144.27,144.23,6.9333]
[1728418585100,6.9316,144.27,144.24,8.31919381]
[1728418585296,6.9312,144.28,144.24,8.31919381]
[1728418586305,6.9312,144.28,144.24,6.9328]
[1728418587212,6.9312,144.28,144.24,6.90276]
[1728418588095,6.9319,144.26,144.22,24.267]
[1728418588492,6.9316,144.27,144.23,6.933]
[1728418588691,6.9322,144.26,144.22,24.2672]
[1728418589112,6.9322,144.26,144.23,6.9332]
[1728418589318,6.9315,144.27,144.23,6.9332]
[1728418589504,6.9315,144.27,144.24,1.38639559]
[1728418589689,6.9315,144.27,144.23,6.9332]
[1728418592702,6.9315,144.27,144.24,1.38639524]
[1728418592907,6.9315,144.27,144.23,6.9332]
[1728418594013,6.9315,144.27,144.24,1.38639515]
[1728418594313,6.9315,144.27,144.23,6.9332]
[1728418594821,6.9315,144.27,144.24,1.38639476]
[1728418595022,6.9315,144.27,144.23,6.9332]
[1728418597919,6.932,144.26,144.22,24.2671]
[1728418599303,0.12549,144.29,144.19,6.4081]
[1728418599619,6.933,144.24,144.2,6.9346]
[1728418601528,6.933,144.24,144.19,17.3375]
[1728418601733,6.933,144.24,144.21,6.9343]
[1728418604539,15.2777,144.26,144.23,24.2663]
[1728418604832,7.05709,144.27,144.23,24.2663]
[1728418607325,6.9311,144.28,144.23,17.3334]
[1728418607535,6.9314,144.27,144.24,6.9328]
[1728418608545,6.9314,144.27,144.24,8.3191573]
[1728418609922,15.2777,144.3,144.24,8.3191573]
[1728418610121,15.2777,144.3,144.24,1.3863573]
[1728418610327,22.2079,144.3,144.26,6.9319]
[1728418610633,22.2079,144.3,144.27,8.31753082]
[1728418611039,22.2079,144.3,144.27,1.38613082]
[1728418612945,6.9305,144.29,144.26,6.9317]
[1728418613130,6.9305,144.29,144.25,24.263]
[1728418615026,15.2777,144.3,144.25,17.3308]
[1728418615229,6.931,144.28,144.25,17.3308]
[1728418615921,6.931,144.28,144.25,18.71711108]
[1728418616419,6.931,144.28,144.25,17.3308]
[1728418619333,32.6029,144.3,144.22,24.2672]
[1728418619646,32.6029,144.3,144.19,50.3386]
[1728418619647,0.12549,144.26,144.19,17.3373]
[1728418619848,6.933,144.24,144.2,6.9347]
[1728418621552,6.933,144.24,144.2,8.32145354]
[1728418623064,0.12549,144.23,144.18,1.38675316]
[1728418623355,0.12549,144.23,144.17,6.9361]
[1728418623356,6.9345,144.21,144.17,6.9361]
[1728418625339,6.9345,144.21,144.17,8.32310416]
[1728418625744,6.9345,144.21,144.17,6.9361]
[1728418626357,6.9352,144.2,144.16,17.341]
[1728418626554,6.9352,144.2,144.16,24.2773]
[1728418627252,6.9352,144.2,144.16,17.341]
[1728418627455,6.9352,144.2,144.17,6.9362]
[1728418628742,0.12549,144.23,144.13,17.3444]
[1728418628743,17.3347,144.22,144.13,17.3444]
[1728418629060,6.9353,144.19,144.15,6.9371]
[1728418629854,0.12549,144.21,144.16,1.38723613]
[1728418630061,7.05979,144.21,144.16,1.38723613]
[1728418630365,23.776884,144.23,144.16,8.32353613]
[1728418630562,6.9349,144.2,144.16,8.32353613]
[1728418630767,6.9358,144.18,144.15,17.3424]
[1728418631264,6.9363,144.17,144.13,6.9381]
[1728418631470,17.3361,144.21,144.12,23.6924]
[1728418631471,17.3361,144.21,144.12,17.3458]
[1728418631758,17.3361,144.21,144.1,6.9395]
[1728418631759,6.9377,144.14,144.1,6.9395]
[1728418632154,17.46399,144.19,144.09,17.3494]
[1728418632348,17.46399,144.19,144.09,24.2893]
[1728418632349,6.9382,144.13,144.09,24.2893]
[1728418633163,6.9377,144.14,144.1,6.9395]
[1728418635466,6.9377,144.14,144.1,8.32721858]
[1728418635670,6.9385,144.13,144.09,24.2895]
[1728418635961,6.9385,144.13,144.09,17.3494]
[1728418635962,6.9388,144.12,144.09,17.3494]
[1728418636161,6.9388,144.12,144.08,6.9404]
[1728418636371,6.9383,144.13,144.09,8.32750161]
[1728418636542,6.9383,144.13,144.09,6.9396]
[1728418638368,0.12549,144.12,144.04,6.4172]
[1728418638544,15.639,144.14,144.04,6.4172]
[1728418638545,0.12549,144.13,144.05,17.3543]
[1728418638877,6.9406,144.08,144.04,6.9422]
[1728418639052,0.12549,144.08,144.02,17.3578]
[1728418639749,6.9412,144.07,144.03,6.9428]
[1728418641544,0.12549,144.06,144.02,24.3008]
[1728418642349,7.24761929,144.08,144.02,18.74626203]
[1728418642551,0.12549,144.07,144.04,6.9424]
[1728418644473,15.639,144.09,144.06,6.9413]
[1728418644666,14.18646067,144.1,144.01,6.4172]
[1728418644667,7.24676067,144.1,144.02,20.0]
[1728418644843,6.94,144.1,144.06,17.3535]
[1728418645350,6.94,144.1,144.06,25.68285459]
[1728418645550,6.94,144.1,144.06,24.2947]
[1728418645958,0.12549,144.09,144.06,24.2947]
[1728418646269,7.2469571,144.12,144.06,24.2947]
[1728418646454,6.9397,144.1,144.06,24.2947]
[1728418647561,7.2469571,144.12,144.07,1.38815269]
[1728418648872,0.12549,144.11,144.08,6.9405]
[1728418651571,7.06459,144.11,144.07,6.9408]
[1728418651963,6.9408,144.08,144.04,6.9424]
[1728418654170,0.12549,144.09,144.04,6.9424]
[1728418654368,6.9415,144.06,144.03,24.2996]
[1728418654691,17.3491,144.1,144.03,24.2996]
[1728418654864,6.9412,144.07,144.03,24.2996]
[1728418655369,6.9421,144.05,144.01,6.9438]
[1728418655874,6.9425,144.04,144.01,6.9438]
[1728418656588,6.9422,144.05,144.01,6.9438]
[1728418660879,6.9415,144.06,144.02,17.3585]
[1728418661087,6.9415,144.06,144.02,24.3018]
[1728418662366,0.12549,144.05,144.02,24.3018]
[1728418663567,22.9252,144.07,144.03,8.33152192]
[1728418663764,15.984,144.07,144.04,6.9424]
[1728418664080,6.9407,144.08,144.04,6.9424]
[1728418664279,6.9403,144.09,144.06,6.9414]
[1728418664973,6.9403,144.09,144.04,17.3561]
[1728418665174,6.9403,144.09,144.04,24.2983]
[1728418665776,6.9403,144.09,144.04,25.68658402]
[1728418666087,0.12549,144.08,144.04,18.74438402]
[1728418666272,0.12549,144.08,144.05,6.9417]
[1728418667193,7.23490405,144.1,144.06,17.3537]
[1728418667391,15.3944,144.11,144.06,17.3537]
[1728418667575,22.3338,144.11,144.07,6.9407]
[1728418668392,0.12549,144.1,144.07,6.9407]
[1728418668593,7.06509,144.1,144.06,24.295]
[1728418669791,0.12549,144.1,144.07,6.941]
[1728418670896,0.12549,144.1,144.08,6.9404]
[1728418671494,15.3944,144.11,144.08,6.9404]
[1728418671790,22.3335,144.11,144.07,1.38810781]
[1728418671972,22.3335,144.11,144.07,8.32900781]
[1728418672492,22.3335,144.11,144.07,6.9409]
[1728418672685,6.9396,144.1,144.06,24.2952]
[1728418674090,7.23545232,144.13,144.08,17.3512]
[1728418674399,16.5318,144.15,144.09,1.38786987]
[1728418675098,6.9381,144.13,144.09,8.32756987]
[1728418675598,7.06339,144.14,144.1,6.9394]
[1728418676792,0.12549,144.14,144.11,6.939]
[1728418677005,7.06319,144.14,144.1,24.2879]
[1728418678396,16.5318,144.15,144.12,6.9386]
[1728418680303,14.29515839,144.16,144.12,6.9386]
[1728418680488,0.12549,144.15,144.12,6.9386]
[1728418682206,7.06199,144.17,144.13,6.9381]
[1728418682887,0.12549,144.17,144.12,17.3463]
[1728418683189,23.4672,144.19,144.15,6.9371]
[1728418683390,16.5318,144.19,144.16,6.9363]
[1728418683996,23.4671,144.19,144.15,6.937]
[1728418684416,0.12549,144.18,144.15,6.937]
[1728418685311,7.23070661,144.22,144.16,17.3416]
[1728418685811,6.9347,144.21,144.18,6.9357]
[1728418686313,6.9347,144.21,144.17,6.9362]
[1728418687405,0.12549,144.2,144.17,6.9362]
[1728418691718,6.9347,144.21,144.17,8.32332709]
[1728418693699,6.9347,144.21,144.17,21.26071308]
[1728418694026,6.9347,144.21,144.17,8.32332709]
[1728418694200,6.9347,144.21,144.17,6.9362]
[1728418694400,6.9347,144.21,144.17,8.32329382]
[1728418696601,6.9347,144.21,144.18,6.9357]
[1728418696919,6.9347,144.21,144.17,6.9361]
[1728418698024,6.9348,144.2,144.17,6.9361]
[1728418698403,43.902374,144.21,144.09,22.9568]
[1728418698727,43.902374,144.21,144.13,6.9379]
[1728418698728,6.9365,144.17,144.13,6.9379]
[1728418699813,6.9367,144.16,144.12,6.9384]
[1728418700198,6.9363,144.17,144.13,6.9381]
[1728418706621,7.2285119,144.19,144.11,17.3467]
[1728418706804,7.2285119,144.19,144.11,24.2856]
[1728418706805,6.9375,144.15,144.11,24.2856]
[1728418707817,6.938,144.14,144.09,13.3317]
[1728418708130,6.9391,144.11,144.08,17.3503]
[1728418708328,6.9391,144.11,144.0,6.943]
[1728418708329,6.9421,144.05,144.0,6.3282]
[1728418708531,43.776884,144.09,144.0,6.9444]
[1728418708705,0.12549,144.06,144.0,6.9444]
[1728418709034,6.942,144.05,143.99,6.9447]
[1728418709233,7.06809,144.04,143.98,17.3635]
[1728418710103,39.178784,144.05,143.96,13.2741]
[1728418710305,7.34920961,144.04,143.96,13.2741]
[1728418711032,14.29210961,144.04,143.97,8.33473095]
[1728418711230,14.29210961,144.04,143.97,6.9458]
[1728418712943,6.943,144.03,143.97,6.9458]
[1728418713117,7.22371961,144.04,143.98,1.38883382]
[1728418714838,22.3441,144.05,144.0,6.9442]
[1728418715917,6.9422,144.05,144.01,1.38858451]
[1728418717013,7.06709,144.06,144.01,8.33238451]
[1728418718416,6.9416,144.06,144.01,6.9438]
[1728418720822,6.9416,144.06,144.02,8.33190937]
[1728418721822,6.9416,144.06,144.03,1.38843209]
[1728418722343,6.9416,144.06,144.02,6.9434]
[1728418722722,6.9416,144.06,144.01,6.9438]
[1728418723421,6.943,144.03,143.98,6.9452]
[1728418724025,6.943,144.03,143.99,6.9448]
[1728418725133,0.12549,144.07,144.0,8.33312435]
[1728418725334,6.9423,144.05,144.0,8.33312435]
[1728418726748,6.9423,144.05,144.0,6.9444]
[1728418727544,6.9423,144.05,144.01,6.9439]
[1728418732349,6.9423,144.05,143.99,17.3618]
[1728418732650,6.9423,144.05,144.0,6.9442]
[1728418737951,6.9423,144.05,144.01,6.9439]
[1728418740854,23.902374,144.07,143.99,17.3618]
[1728418741038,6.943,144.03,143.99,24.3063]
[1728418741949,6.943,144.03,144.0,1.38867427]
[1728418742154,31.11408181,144.07,144.0,1.38867427]
[1728418742357,6.9423,144.05,144.01,6.9439]
[1728418742655,6.942,144.05,144.01,24.3035]
[1728418753658,6.9416,144.06,144.02,6.9433]
[1728418753866,6.9416,144.06,144.02,8.33173614]
[1728418755470,14.19348053,144.09,144.05,6.9418]
[1728418755670,14.19328053,144.09,144.06,1.38812617]
[1728418755971,6.9415,144.06,144.02,6.9433]
[1728418756346,6.9415,144.06,144.02,8.3317145]
[1728418756554,17.3493,144.1,144.03,6.9429]
[1728418756555,6.9413,144.07,144.03,6.9429]
[1728418757565,6.9413,144.07,144.04,1.38837884]
[1728418759056,6.9413,144.07,144.03,6.9429]
[1728418761448,6.9413,144.07,144.04,1.38835182]
[1728418761880,6.9413,144.07,144.03,6.9429]
[1728418763363,6.5604,144.11,144.04,12.97664731]
[1728418763364,0.12549,144.11,144.04,12.97664731]
[1728418763673,0.12549,144.11,144.04,6.9424]
[1728418763674,6.9405,144.08,144.04,6.9424]
[1728418764583,6.9403,144.09,144.05,6.9419]
[1728418764765,6.9403,144.09,144.05,8.33005623]
[1728418765279,6.9403,144.09,144.05,6.9419]
[1728418766571,6.9398,144.1,144.06,6.9415]
[1728418767262,0.12549,144.11,144.04,17.3558]
[1728418767583,6.9401,144.09,144.05,6.9415]
[1728418778694,22.7038421,144.12,144.06,6.9414]
[1728418779288,6.9398,144.1,144.06,6.9414]
[1728418781776,6.9398,144.1,144.07,1.38805425]
[1728418782287,6.9398,144.1,144.06,6.9414]
[1728418783821,6.9398,144.1,144.07,1.38803492]
[1728418783985,6.9393,144.11,144.07,1.38803492]
[1728418784194,6.9393,144.11,144.07,8.32893492]
[1728418784486,29.6426421,144.12,144.08,6.9404]
[1728418785072,6.9392,144.11,144.08,6.9404]
[1728418785267,6.9392,144.11,144.07,8.32883492]
[1728418788176,6.9392,144.11,144.08,6.9405]
[1728418788366,6.9392,144.11,144.09,1.38788067]
[1728418789602,6.9392,144.11,144.08,8.32837988]
[1728418790503,6.9392,144.11,144.08,6.9405]
[1728418790679,6.9392,144.11,144.09,1.38788359]
[1728418791002,6.9392,144.11,144.08,8.3283736]
[1728418792110,22.7038421,144.12,144.09,8.32760067]
[1728418793174,7.2527421,144.12,144.09,8.32760067]
[1728418793373,6.9384,144.13,144.09,8.32760067]
[1728418794698,16.075,144.16,144.09,1.38790067]
[1728418794903,6.9378,144.14,144.1,6.9395]
[1728418796206,6.9382,144.13,144.09,6.9397]
[1728418796392,6.9391,144.11,144.07,6.9409]
[1728418797717,6.9391,144.11,144.08,6.9405]
[1728418799512,6.9388,144.12,144.09,1.38784709]
[1728418799995,6.9388,144.12,144.09,8.32784709]
[1728418800194,6.9388,144.12,144.08,6.9403]
[1728418801920,6.9388,144.12,144.09,1.38784774]
[1728418803431,6.9388,144.12,144.08,6.9403]
[1728418807031,6.9394,144.11,144.07,24.2933]
[1728418807912,6.9404,144.09,144.05,6.9419]
[1728418808119,6.9406,144.08,144.04,24.2976]
[1728418812110,15.28149,144.12,144.06,12.97664731]
[1728418812324,6.9393,144.11,144.07,21.30524218]
[1728418812519,6.9393,144.11,144.07,14.36464218]
[1728418812827,6.9393,144.11,144.08,6.9404]